[Event "Super United Croatia GCT Blitz 2022"]
[Site "Zagreb"]
[Date "2022.07.23"]
[Round "2"]
[White "Vachier-Lagrave, Maxime"]
[Black "Nepomniachtchi, Ian"]
[Result "0-1"]
[ECO "C01"]
[WhiteElo "2760"]
[BlackElo "2766"]
[Annotator "TA"]
[PlyCount "84"]
[EventDate "2022.07.20"]
[EventType "tourn"]
[EventCountry "CRO"]
[SourceTitle "playchess.com"]
[Source "ChessBase"]
[SourceQuality "1"]
[TimeControl "300+2"]

{[%evp 17,84,18,11,17,16,14,17,12,31,11,5,0,0,0,31,26,33,-4,-14,-10,-16,-19,0,-18,0,-28,-9,-53,-24,-52,-49,-52,-52,-57,-51,-79,-81,-75,-80,-115,-114,-131,-129,-133,-129,-135,-136,-132,-133,-135,-115,-115,-115,-147,-148,-141,-141,-141,-141,-173,-173,-169,-168,-161,-161,-301,-293,-279,-273]} 1. e4 {[%emt 0:00:01]} e5 {[%emt 0:00:01]} 2. Nf3 {[%emt 0:00:01]} Nf6 {[%emt 0:00:01]} 3. Nxe5 {[%emt 0:00:01]} d6 {[%emt 0:00:01]} 4. Nf3 {[%emt 0:00:02]} Nxe4 {[%emt 0:00:01]} 5. d3 {[%emt 0:00:01]} Nf6 {[%emt 0:00:02]} 6. d4 {[%emt 0:00:01]} d5 {[%emt 0:00:01]} 7. Bd3 {[%emt 0:00:03]} Bd6 {[%emt 0:00:01]} 8. Qe2+ {[%emt 0:00:01]} Qe7 {[%emt 0:00:01]} 9. Qxe7+ {[%emt 0:00:02]} Kxe7 {[%emt 0:00:02]} 10. O-O {[%emt 0:00:03] C01: French: Exchange Variation.} Nc6 {[%emt 0:00:06]} 11. Re1+ {[%emt 0:00:06]} Kf8 {[%emt 0:00:06]} 12. c3 {[%emt 0:00:11] Prevents Nb4. The position is equal.} Ne7 {[%emt 0:00:16] [#]} 13. Nbd2 $146 {[%emt 0:00:12]} ({Predecessor:} 13. Bg5 Nfg8 14. Na3 f6 15. Bh4 c6 16. Bg3 Bxg3 17. hxg3 Bf5 18. Bf1 g5 19. Nd2 {0-1 (51) Loxine,J (2398)-Duda,J (2731) Chess.com INT 2019}) 13... Bf5 {[%emt 0:00:05]} 14. Bf1 {[%emt 0:00:02]} h6 {[%emt 0:00:22]} 15. c4 {[%emt 0:00:22]} dxc4 {[%emt 0:00:36]} 16. Nxc4 {[%emt 0:00:01]} Bb4 {[%emt 0:00:01]} 17. Bd2 {[%emt 0:00:02]} Bxd2 {[%emt 0:00:01]} 18. Ncxd2 {[%emt 0:00:16]} Nfd5 {[%emt 0:00:13]} 19. Rac1 {[%emt 0:00:06]} f6 {[%emt 0:00:05]} 20. Bc4 {[%emt 0:00:15]} c6 {[%emt 0:00:09]} 21. a3 {[%emt 0:00:27]} Kf7 {[%emt 0:00:08]} 22. Ba2 {[%emt 0:00:08]} (22. Nh4 {looks sharper.} Bh7 23. g3 Rad8 24. b4) 22... Rhd8 {[%emt 0:00:31]} 23. Nc4 {[%emt 0:00:02]} (23. Nh4 {is more complex.} Bh7 24. Nhf3 g5 25. g3) 23... Kf8 {[%emt 0:00:06]} 24. Na5 {[%emt 0:00:16]} Rab8 {[%emt 0:00:06]} 25. g3 {[%emt 0:00:11]} Bg6 {[%emt 0:00:05]} 26. Nh4 {[%emt 0:00:17]} Bf7 {[%emt 0:00:01]} 27. Bb1 {[%emt 0:00:01]} Nc7 {[%emt 0:00:18]} 28. Nc4 {[%emt 0:00:25]} Nb5 {[%emt 0:00:12]} ({But not} 28... Rxd4 $6 29. Rxe7 $1 {[%mdl 512]} Kxe7 30. Nf5+ Kf8 31. Nxd4 $11) 29. d5 {[%emt 0:00:16]} Rxd5 {[%emt 0:00:10]} 30. Ne3 {[%emt 0:00:06]} Rd2 {[%emt 0:00:12]} 31. Rc2 {[%emt 0:00:02]} Rbd8 {[%emt 0:00:05]} 32. Nf3 {[%emt 0:00:02]} Rxc2 {[%emt 0:00:03] 0x0.0002de0880eddp-1022s more active pieces.} 33. Bxc2 {[%emt 0:00:01]} Nd4 {[%emt 0:00:10]} 34. Nxd4 {[%emt 0:00:02]} Rxd4 {[%emt 0:00:01]} 35. Rd1 {[%emt 0:00:12]} Rxd1+ {[%emt 0:00:04]} 36. Bxd1 {[%emt 0:00:01]} Nd5 {[%emt 0:00:05]} 37. Nxd5 {[%emt 0:00:16]} Bxd5 $17 {[%emt 0:00:02] KB-KB} ({Weaker is} 37... cxd5 38. Kf1 $15) 38. f4 {[%emt 0:00:01]} Ke7 {[%emt 0:00:01]} 39. Kf2 {[%emt 0:00:01]} Kd6 {[%emt 0:00:02]} 40. Ke3 {[%emt 0:00:01]} c5 {[%emt 0:00:09][%cal Bc6c5,Bc5c4][%mdl 32]} 41. Kd2 {[%emt 0:00:21] [#]} (41. Bh5 {keeps fighting.}) 41... c4 $1 $19 {[%emt 0:00:07]} 42. Kc3 {[%emt 0:00:08] [#]} Kc5 $1 {[%emt 0:00:01] Weighted Error Value: White=0.16 (very precise) /Black=0.04 (flawless)} 0-1

[Event "Super United Croatia GCT Blitz 2022"]
[Site "Zagreb"]
[Date "2022.07.23"]
[Round "2"]
[White "Dominguez Perez, Leinier"]
[Black "Mamedyarov, Shakhriyar"]
[Result "1-0"]
[ECO "C77"]
[WhiteElo "2754"]
[BlackElo "2759"]
[Annotator "TA"]
[PlyCount "115"]
[EventDate "2022.07.20"]
[EventType "tourn"]
[EventCountry "CRO"]
[SourceTitle "playchess.com"]
[Source "ChessBase"]
[SourceQuality "1"]
[TimeControl "300+2"]

{[%evp 12,115,14,12,41,42,65,47,45,35,55,31,33,21,17,31,20,24,104,46,52,43,77,70,57,20,20,17,12,16,45,21,17,-31,-3,-4,-4,-4,54,60,54,52,142,142,143,152,149,149,149,150,149,149,150,150,150,138,133,123,125,117,136,128,128,128,143,128,127,127,131,100,149,149,245,231,231,167,167,143,159,138,245,245,245,245,245,231,231,98,98,104,104,84,106,0,29968,29969,29979,29980,29980,29974,29973,29972,29968,0,29955,0]} 1. e4 {[%emt 0:00:01]} e5 {[%emt 0:00:00]} 2. Nf3 {[%emt 0:00:02]} Nc6 {[%emt 0:00:01]} 3. Bb5 {[%emt 0:00:02]} a6 {[%emt 0:00:06]} 4. Ba4 {[%emt 0:00:01]} Nf6 {[%emt 0:00:01]} 5. Nc3 {[%emt 0:00:01]} Bc5 {[%emt 0:00:11]} 6. O-O {[%emt 0:00:03]} b5 {[%emt 0:00:05]} 7. Bb3 {[%emt 0:00:02]} d6 {[%emt 0:00:02] C77: Ruy Lopez: 3...a6 4 Ba4 Nf6, unusual lines.} 8. Nd5 {[%emt 0:00:05]} O-O {[%emt 0:00:12]} 9. c3 {[%emt 0:00:11]} (9. d4 $5 Bxd4 10. Bg5 $14) 9... h6 {[%emt 0:00:29] White is slightly better.} 10. d4 {[%emt 0:00:04]} Ba7 {[%emt 0:00:02]} 11. h3 {[%emt 0:00:54]} Rb8 {[%emt 0:00:37]} 12. Re1 {[%emt 0:00:20]} (12. Be3 $5 {[%cal Rd4e5]}) 12... Re8 {[%emt 0:00:01] [#]} 13. Be3 $146 {[%emt 0:00:13]} ({Predecessor:} 13. Nxf6+ Qxf6 14. Be3 Bb6 15. a4 Ne7 16. axb5 axb5 17. dxe5 dxe5 18. Bxb6 Rxb6 19. Ra7 {1-0 (58) Henning,M (2286)-Plischki,S (2152) Playchess.com INT 2020}) 13... Nxd5 {[%emt 0:00:45]} 14. Bxd5 {[%emt 0:00:20]} exd4 {[%emt 0:00:02]} (14... Ne7 $11 {keeps the balance.}) 15. cxd4 {[%emt 0:00:05]} (15. Bxc6 dxe3 16. fxe3 Bd7 $17) (15. Nxd4 Nxd4 16. cxd4 (16. Bxd4 Bb6 $11) 16... Bb7 $14) ({White should try} 15. Bxh6 $1 $16 Bb7 16. Bg5) 15... Ne7 {[%emt 0:00:10]} 16. Bb3 {[%emt 0:00:18]} Ng6 {[%emt 0:00:07] [#] Inhibits Nh4.} 17. Qc2 $1 {[%emt 0:00:26]} Bb6 {[%emt 0:00:49]} 18. Rac1 {[%emt 0:00:57][%cal Oe4e5]} Qf6 {[%emt 0:00:15] Inhibits e5.} 19. e5 {[%emt 0:00:18]} Qf5 {[%emt 0:00:01]} ({Much less strong is} 19... dxe5 20. dxe5 Qf5 21. Qxf5 Bxf5 22. Bxb6 cxb6 23. Nd4 $16) 20. exd6 {[%emt 0:00:28]} cxd6 {[%emt 0:00:07]} 21. Qxf5 {[%emt 0:00:31]} Bxf5 {[%emt 0:00:01]} 22. Bd5 {[%emt 0:00:16]} (22. Rc6 $11) 22... Ne7 $15 {[%emt 0:00:04]} 23. Bb3 {[%emt 0:00:00]} Be4 {[%emt 0:00:21]} 24. Bf4 $36 {[%emt 0:00:02][%mdl 2048] White is pushing.} Bxf3 {[%emt 0:00:07]} (24... Nf5 $11) 25. Bxd6 $14 {[%emt 0:00:06]} ({Of course not} 25. gxf3 Nf5 $15) 25... Rb7 {[%emt 0:00:15]} 26. gxf3 {[%emt 0:00:03]} Bxd4 {[%emt 0:00:01] [#]} (26... Rd7 $1 $14 27. Ba3 a5) 27. Bd5 $1 $16 {[%emt 0:00:03] This bishop pair is nice.} Rd7 {[%emt 0:00:08]} 28. Bc6 {[%emt 0:00:01] White is more active.} Rxd6 {[%emt 0:00:01]} 29. Bxe8 {[%emt 0:00:01]} Kf8 {[%emt 0:00:09]} 30. Rc7 {[%emt 0:00:01]} Bf6 {[%emt 0:00:02]} 31. Rd7 {[%emt 0:00:05]} Rxd7 {[%emt 0:00:28]} 32. Bxd7 {[%emt 0:00:01]} Bxb2 {[%emt 0:00:01][%mdl 4096] Endgame KRB-KBN} 33. Re2 {[%emt 0:00:00]} Bc3 {[%emt 0:00:01]} 34. Rc2 {[%emt 0:00:02]} b4 {[%emt 0:00:01]} 35. Re2 {[%emt 0:00:02]} g6 {[%emt 0:00:01]} 36. Re4 {[%emt 0:00:02]} Nd5 {[%emt 0:00:03]} 37. Bc6 {[%emt 0:00:03]} Ne7 {[%emt 0:00:04]} 38. Bb7 {[%emt 0:00:01]} a5 {[%emt 0:00:00]} 39. Rc4 {[%emt 0:00:04]} Nf5 {[%emt 0:00:03]} 40. Be4 {[%emt 0:00:02] And now Bxf5 would win.} Nd6 {[%emt 0:00:04]} (40... Nd4 $142) 41. Rc6 {[%emt 0:00:01]} Nxe4 {[%emt 0:00:16]} (41... Ke7 $16 42. Ra6 Nb5) 42. fxe4 {[%emt 0:00:01] KR-KB} a4 43. Ra6 {[%emt 0:00:01]} a3 {[%emt 0:00:01]} 44. Rb6 {[%emt 0:00:02]} Kg7 {[%emt 0:00:01]} 45. Kf1 {[%emt 0:00:02]} h5 {[%emt 0:00:03]} (45... g5 $16 46. Kg2 f6) 46. Ke2 $18 {[%emt 0:00:01]} g5 {[%emt 0:00:01]} 47. f3 {[%emt 0:00:01]} f6 {[%emt 0:00:08]} 48. Kd3 {[%emt 0:00:01]} Kg6 {[%emt 0:00:00]} 49. Kc4 {[%emt 0:00:01]} (49. Ke3 $18) 49... g4 $16 {[%emt 0:00:01]} 50. hxg4 {[%emt 0:00:02]} hxg4 {[%emt 0:00:00] White must now prevent ...g3.} 51. fxg4 {[%emt 0:00:02]} Kg5 52. Rxb4 {[%emt 0:00:07]} (52. Kd3 $16) 52... Bb2 $2 {[%emt 0:00:07][%mdl 8192]} (52... Bxb4 $11 53. Kxb4 Kxg4) 53. Rb5+ {[%emt 0:00:04]} Kxg4 {[%emt 0:00:02]} 54. Rf5 {[%emt 0:00:02]} Kg3 {[%emt 0:00:01]} 55. Kd3 {[%emt 0:00:01]} Kg4 {[%emt 0:00:01]} 56. Ke2 {[%emt 0:00:01]} Be5 {[%emt 0:00:02]} 57. Kd3 {[%emt 0:00:03]} Bb2 $1 {[%emt 0:00:01]} 58. Kc4 $2 {[%emt 0:00:01][%mdl 32768] Weighted Error Value: White=0.23 (precise) /Black=0.23 (precise) . Sensor Board Error (Ke4/e5)?} (58. Kd2 {mates} Be5 59. Kd3 Bg3 60. Kd4 Bh4 61. Ra5 Bf2+ 62. Kd5 Bh4 63. Rxa3) 1-0

[Event "Super United Croatia GCT Blitz 2022"]
[Site "Zagreb"]
[Date "2022.07.23"]
[Round "2"]
[White "Topalov, Veselin"]
[Black "Carlsen, Magnus"]
[Result "0-1"]
[ECO "C55"]
[WhiteElo "2728"]
[BlackElo "2864"]
[Annotator "TA"]
[PlyCount "64"]
[EventDate "2022.07.20"]
[EventType "tourn"]
[EventCountry "CRO"]
[SourceTitle "playchess.com"]
[Source "ChessBase"]
[SourceQuality "1"]
[TimeControl "300+2"]

{[%evp 12,64,17,3,25,20,35,27,35,26,24,21,24,18,31,15,77,83,91,77,78,71,75,80,82,40,33,39,42,0,0,9,12,0,16,0,0,0,31,29,41,37,77,38,40,0,13,-39,-44,-55,0,-122,-131,-135,-125]} 1. e4 {[%emt 0:00:01]} e5 {[%emt 0:00:01]} 2. Nf3 {[%emt 0:00:02]} Nc6 {[%emt 0:00:02]} 3. Bc4 {[%emt 0:00:01]} Nf6 {[%emt 0:00:02]} 4. d3 {[%emt 0:00:03]} Be7 {[%emt 0:00:16]} 5. Nc3 {[%emt 0:00:04]} d6 {[%emt 0:00:07]} 6. a3 {[%emt 0:00:03]} O-O {[%emt 0:00:10]} 7. O-O {[%emt 0:00:11]} h6 {[%emt 0:00:22] C55: Two Knights: 4 d3, 4 d4 exd4 5 e5 and Max Lange Attack.} 8. h3 {[%emt 0:00:11]} Re8 {[%emt 0:00:05] seems to push 8...Be6 aside.} 9. Be3 {[%emt 0:00:13]} Bf8 {[%emt 0:00:02] White has an edge.} 10. Re1 {[%emt 0:00:07] [#]} Ne7 $5 $146 {[%emt 0:00:14][%mdl 8] An interesting novelty.} ({Predecessor:} 10... Be6 11. Bxe6 Rxe6 12. d4 Re8 13. Qd3 exd4 14. Nxd4 Ne5 15. Qb5 Qd7 16. Qxd7 Nexd7 {1-0 (90) Matlakov,M (2674)-Ivanchuk,V (2678) Chess.com INT 2022}) 11. d4 {[%emt 0:00:10]} exd4 {[%emt 0:00:20]} 12. Bxd4 {[%emt 0:00:09]} Nc6 {[%emt 0:00:18]} 13. e5 {[%emt 0:00:28]} (13. Be3 {with more complications.} a6 14. Ba2 Ne5 15. Nxe5 dxe5 16. Qf3) 13... Nxd4 {[%emt 0:01:23]} (13... dxe5 $11 14. Nxe5 (14. Bxe5 Qxd1 15. Raxd1 Nxe5 $11) 14... Nxe5 15. Rxe5 (15. Bxe5 Be6 $11) 15... Bd7) 14. Qxd4 $16 {[%emt 0:00:07]} dxe5 {[%emt 0:00:02]} 15. Qxd8 {[%emt 0:00:08]} Rxd8 {[%emt 0:00:01]} 16. Nxe5 {[%emt 0:00:02][%cal Bf3e5,Be5c4,Bc4a5,Ba5b3][%mdl 32]} Be6 {[%emt 0:00:01]} 17. Bxe6 {[%emt 0:00:10]} fxe6 {[%emt 0:00:04]} 18. Nc4 {[%emt 0:01:14] Pair of Knights!} Rd4 {[%emt 0:00:18]} 19. Na5 {[%emt 0:00:04]} Rd2 {[%emt 0:00:06]} 20. Re2 {[%emt 0:00:32]} Rxe2 {[%emt 0:00:03]} 21. Nxe2 {[%emt 0:00:01]} Rd8 {[%emt 0:00:03]} 22. Kf1 {[%emt 0:00:03]} (22. Nxb7 Rb8 23. Na5 Rxb2 $17) 22... Rd5 {[%emt 0:00:30]} 23. Nb3 {[%emt 0:00:17]} Ne4 {[%emt 0:00:13]} 24. Nf4 {[%emt 0:00:04]} Rf5 {[%emt 0:00:14]} 25. Nd3 {[%emt 0:00:01]} c5 {[%emt 0:00:14] [#] Strongly threatening ...c4.} 26. c4 {[%emt 0:00:33]} ({Much weaker is} 26. Re1 Ng3+ 27. Kg1 c4 $11) 26... Nd6 {[%emt 0:00:22]} 27. Rc1 {[%emt 0:00:13]} ({But not} 27. Ndxc5 Nxc4 28. Nxe6 Nxb2 $11) 27... b6 {[%emt 0:00:02]} 28. Ke2 {[%emt 0:00:07]} Be7 {[%emt 0:00:01]} 29. g3 {[%emt 0:00:26]} (29. Nd2 $11) 29... e5 $15 {[%emt 0:00:06]} 30. g4 {[%emt 0:00:07]} Rf6 {[%emt 0:00:04]} (30... Rf8 $1 $15) 31. Nxe5 {[%emt 0:00:06]} (31. Nd2 $1 $11) 31... Re6 $17 {[%emt 0:00:00]} 32. f4 {[%emt 0:00:01] [#] Against Bg5} g5 $1 {[%emt 0:00:07] Weighted Error Value: White=0.24 (precise) /Black=0.15 (very precise)} 0-1

[Event "Super United Croatia GCT Blitz 2022"]
[Site "Zagreb"]
[Date "2022.07.23"]
[Round "2"]
[White "Saric, Ivan"]
[Black "Van Foreest, Jorden"]
[Result "0-1"]
[ECO "C65"]
[WhiteElo "2680"]
[BlackElo "2678"]
[Annotator "TA"]
[PlyCount "74"]
[EventDate "2022.07.20"]
[EventType "tourn"]
[EventCountry "CRO"]
[SourceTitle "playchess.com"]
[Source "ChessBase"]
[SourceQuality "1"]
[TimeControl "300+2"]

{[%evp 9,74,14,16,14,10,14,15,6,16,-11,6,-4,1,-11,-5,-9,-12,-6,-8,-8,-4,-8,-4,-64,-58,-80,-24,-38,-11,-22,0,0,-7,0,0,0,0,-106,-110,-102,-98,-125,-133,-170,-177,-197,-191,-189,-158,-235,-240,-229,-210,-242,-245,-376,-373,-515,-507,-664,-643,-641,-604,-1168,-636,-644,-568]} 1. e4 {[%emt 0:00:01]} e5 {[%emt 0:00:01]} 2. Nf3 {[%emt 0:00:01]} Nc6 {[%emt 0:00:01]} 3. Bb5 {[%emt 0:00:03]} Nf6 {[%emt 0:00:07]} 4. d3 {[%emt 0:00:06]} Bc5 {[%emt 0:00:08]} 5. Bxc6 {[%emt 0:00:02]} dxc6 {[%emt 0:00:02]} 6. O-O {[%emt 0:00:03] C65: Ruy Lopez: Berlin Defence (3...Nf6), unusual lines and 4 0-0 Bc5.} Nd7 {[%emt 0:00:04]} 7. Nbd2 {[%emt 0:00:04] 7.c3 is more advanced technology.} O-O {[%emt 0:00:04]} 8. Nc4 {[%emt 0:00:01] The position is equal.} f6 {[%emt 0:00:02]} 9. Kh1 {[%emt 0:00:06]} a5 {[%emt 0:00:04]} 10. a4 {[%emt 0:00:02] [#]} Rf7 $146 {[%emt 0:00:04]} ({Predecessor:} 10... Nb6 11. Be3 Bxe3 12. Nxe3 Be6 13. Ng1 Qd4 14. b3 Nd7 15. Ne2 Qc5 16. Qd2 Rae8 {1-0 (108) Giri,A (2764)-Lysyj,I (2593) Chess.com INT 2020}) 11. c3 {[%emt 0:00:15]} Nf8 {[%emt 0:00:03]} 12. h3 {[%emt 0:01:03]} Be6 {[%emt 0:00:04] Strongly threatening ...Bxc4.} 13. Nxa5 {[%emt 0:00:36]} Rxa5 {[%emt 0:00:13]} 14. b4 {[%emt 0:00:00] [#]} Bxb4 {[%emt 0:00:02]} 15. cxb4 {[%emt 0:00:01]} Ra8 {[%emt 0:00:01]} 16. d4 {[%emt 0:00:18]} (16. Qc2 $11) 16... Rd7 $1 $15 {[%emt 0:00:08][%cal Bf7d7,Bd7d3,Bd3b3,Bb3b4][%mdl 32]} 17. Bb2 {[%emt 0:00:01] [#]} exd4 {[%emt 0:00:21]} (17... Bf7 $1 $17) 18. Nxd4 $11 {[%emt 0:00:09]} Bf7 {[%emt 0:00:20]} 19. Qd3 {[%emt 0:00:24]} Ne6 {[%emt 0:00:12]} 20. Nxe6 {[%emt 0:00:10]} Rxd3 {[%emt 0:00:02]} 21. Nxd8 {[%emt 0:00:01]} Raxd8 {[%emt 0:00:01]} 22. Rac1 {[%emt 0:01:12]} Rb3 {[%emt 0:00:08][%csl LRb2,LRb4]} 23. Rfd1 {[%emt 0:00:09]} (23. Bc3 $11 {was the only way to keep the balance.}) 23... Rxd1+ $17 {[%emt 0:00:23]} 24. Rxd1 {[%emt 0:00:00][%mdl 4096] Endgame And now Rd8+ would win. KRB-KRB} Be6 {[%emt 0:00:09]} ({Much worse is} 24... Rxb2 $6 25. Rd8+ Be8 26. Rxe8+ Kf7 27. Rc8 $11) 25. Rd2 {[%emt 0:00:19]} Rxb4 {[%emt 0:00:17]} 26. e5 {[%emt 0:00:05]} Kf7 {[%emt 0:00:12]} 27. exf6 {[%emt 0:00:02]} gxf6 {[%emt 0:00:02]} 28. a5 {[%emt 0:00:04]} c5 {[%emt 0:00:01][%cal Bc6c5,Bc5c4,Bc4c3,Bc3c2][%mdl 32]} 29. Ba3 {[%emt 0:00:20]} (29. Rc2 $17 {is a better defense.}) 29... Rb5 $19 {[%emt 0:00:05]} 30. a6 {[%emt 0:00:12]} bxa6 {[%emt 0:00:07]} 31. f4 {[%emt 0:00:06]} c4 {[%emt 0:00:05] Hoping for ...c3.} 32. Bb2 {[%emt 0:00:04]} (32. Rc2 {was worth a try.}) 32... Rb3 {[%emt 0:00:02]} 33. Bd4 {[%emt 0:00:05]} Bf5 {[%emt 0:00:04] White must now prevent ...c3. Black is clearly winning.} 34. Ra2 {[%emt 0:00:02]} Rd3 {[%emt 0:00:10]} 35. Bc5 {[%emt 0:00:03]} c3 {[%emt 0:00:03]} 36. Ba3 {[%emt 0:00:00]} Rd1+ {[%emt 0:00:05]} 37. Kh2 {[%emt 0:00:01]} c2 {[%emt 0:00:01] Weighted Error Value: White=0.47/Black=0.17 (very precise)} 0-1

[Event "Super United Croatia GCT Blitz 2022"]
[Site "Zagreb"]
[Date "2022.07.23"]
[Round "3"]
[White "Carlsen, Magnus"]
[Black "So, Wesley"]
[Result "0-1"]
[ECO "C54"]
[WhiteElo "2864"]
[BlackElo "2773"]
[Annotator "TA"]
[PlyCount "78"]
[EventDate "2022.07.20"]
[EventType "tourn"]
[EventCountry "CRO"]
[SourceTitle "playchess.com"]
[Source "ChessBase"]
[SourceQuality "1"]
[TimeControl "300+2"]

{[%evp 10,78,12,6,15,0,8,6,11,0,7,12,28,20,14,0,26,28,14,0,0,-21,-18,-93,-85,-109,-131,-175,-176,-233,-230,-274,-266,-388,-374,-753,-732,-887,-879,-1072,-697,-651,-606,-660,-662,-655,-659,-651,-643,-663,-656,-698,-618,-731,-739,-755,-735,-718,-672,-697,-656,-1673,-1609,-1557,-1645,-1645,-1546,-1455,-1450,-29991,-29992]} 1. e4 {[%emt 0:00:01]} e5 {[%emt 0:00:01]} 2. Nf3 {[%emt 0:00:02]} Nc6 {[%emt 0:00:01]} 3. Bc4 {[%emt 0:00:02]} Bc5 {[%emt 0:00:01]} 4. c3 {[%emt 0:00:01]} Nf6 {[%emt 0:00:02]} 5. d3 {[%emt 0:00:01]} d6 {[%emt 0:00:03]} 6. Nbd2 {[%emt 0:00:06][%cal Bb1d2,Bd2f1,Bf1g3][%mdl 32]} a5 $1 {[%emt 0:00:07][%mdl 4] 6...a5 is the recent fashion. C54: Giuoco Piano: 4 c3 Nf6, main lines with 5 d4 and 5 d3.} 7. Nf1 {[%emt 0:00:09]} O-O {[%emt 0:00:11]} 8. Ng3 {[%emt 0:00:08]} Be6 {[%emt 0:00:18] The position is equal.} 9. Bb5 {[%emt 0:00:02]} Ne7 {[%emt 0:00:05] [#]} 10. O-O $146 {[%emt 0:00:03]} ({Predecessor:} 10. d4 exd4 11. cxd4 Bb4+ 12. Kf1 c6 13. Bd3 a4 14. a3 Bb3 15. Bc2 Bxc2 16. Qxc2 {1-0 (47) Carlsen,M (2855)-Tari,A (2642) Stavanger 2021}) 10... c6 {[%emt 0:00:06]} 11. Ba4 {[%emt 0:00:01]} Ng6 {[%emt 0:00:02]} 12. d4 {[%emt 0:00:06]} Ba7 {[%emt 0:00:05]} 13. h3 {[%emt 0:00:04]} exd4 {[%emt 0:00:13]} 14. Nxd4 {[%emt 0:00:01]} d5 {[%emt 0:00:08]} 15. Nxe6 {[%emt 0:00:12]} fxe6 {[%emt 0:00:01]} 16. Bc2 {[%emt 0:00:02]} (16. Qe1 $11) 16... Qc7 $17 {[%emt 0:00:17] White is now going downhill.} 17. Kh2 {[%emt 0:01:44]} dxe4 {[%emt 0:00:03] White must now prevent ...Rad8. Black is more active.} 18. Qe2 {[%emt 0:00:50] [#]} Nf4 $1 {[%emt 0:00:37]} 19. Qe1 {[%emt 0:01:15]} (19. Bxf4 {is a better defense.} Qxf4 20. Kh1) 19... Rad8 $19 {[%emt 0:00:32]} 20. Bxe4 {[%emt 0:00:12]} h5 {[%emt 0:00:13]} 21. Be3 {[%emt 0:00:20]} (21. Bxf4 $142 Qxf4 22. Bg6) 21... Bb8 {[%emt 0:00:10]} ({Worse is} 21... Nxe4 22. Bxa7 Nd2 23. Rg1 $19) 22. Kg1 $2 {[%emt 0:00:18]} (22. Bc5 h4 23. Bxf8 Rxf8 24. Rd1 hxg3+ 25. fxg3) 22... Nxe4 {[%emt 0:00:08]} 23. Bxf4 {[%emt 0:00:03]} Rxf4 {[%emt 0:00:02]} 24. Nxh5 {[%emt 0:00:01]} Rf5 {[%emt 0:00:34][%csl Gb8][%cal Rc7h2] [#]} 25. f4 {[%emt 0:00:01]} Nd2 {[%emt 0:00:28]} 26. Qxe6+ {[%emt 0:00:05]} Qf7 {[%emt 0:00:01]} 27. Qxf7+ {[%emt 0:00:02]} Kxf7 {[%emt 0:00:05]} 28. Ng3 {[%emt 0:00:01]} Rb5 {[%emt 0:00:12]} 29. Rfe1 {[%emt 0:00:02]} Rxb2 {[%emt 0:00:06] Hoping for ...Ba7+.} 30. Nf5 {[%emt 0:00:01]} Rd7 {[%emt 0:00:32]} 31. Rad1 {[%emt 0:00:04]} Bxf4 {[%emt 0:00:10]} 32. a4 {[%emt 0:00:02]} Rd5 {[%emt 0:00:06]} 33. Nd4 {[%emt 0:00:01]} g5 {[%emt 0:00:07]} 34. Re2 {[%emt 0:00:03]} Nc4 {[%emt 0:00:03] Threatens to win with ...Rxe2.} 35. Ree1 {[%emt 0:00:02]} Ne3 {[%emt 0:00:03]} 36. Rb1 {[%emt 0:00:00]} Rxg2+ {[%emt 0:00:07]} 37. Kh1 {[%emt 0:00:01]} Rg3 {[%emt 0:00:02]} 38. Rxb7+ {[%emt 0:00:01]} Kg6 {[%emt 0:00:01]} 39. Nxc6 {[%emt 0:00:02]} Rd2 {[%emt 0:00:01] Weighted Error Value: White=0.45/Black=0.15 (very precise)} 0-1